Workbook

Sheet 運算結果報表 1
A1: Microsoft Excel 10.0 運算結果報表
A2: 工作表: [FOR.xls]GameTheory
A3: 報表的建立: 2011/8/4 上午 11:41:50
A6: 目標儲存格 (Min)
B7: 儲存格 | C7: 名稱 | D7: 初值 | E7: 終值
B8: $B$1 | C8: Object | E8: 350
A11: 可調整儲存格
B12: 儲存格 | C12: 名稱 | D12: 初值 | E12: 終值
B13: $B$2 | C13: YA | D13: 1 | E13: 1
B14: $B$3 | C14: YB | D14: 1 | E14: 0
B15: $B$4 | C15: YC | D15: 1 | E15: 0
B16: $B$5 | C16: YD | D16: 1 | E16: 2.240696517e-11
B17: $B$6 | C17: YE | D17: 1 | E17: 1
B18: $B$7 | C18: X0 | D18: 0 | E18: 0
B19: $B$8 | C19: X2 | D19: 1 | E19: 11
B20: $B$9 | C20: X3 | D20: 1 | E20: 11
B21: $B$10 | C21: X4 | D21: 1 | E21: 19
B22: $B$11 | C22: Xn | D22: 1 | E22: 25
A25: 限制式
B26: 儲存格 | C26: 名稱 | D26: 儲存格值 | E26: 公式 | F26: 狀態 | G26: Slack
B27: $F$2 | C27: <= 公式 | D27: 12 | E27: $F$2>=$H$2 | F27: Binding | G27: 0
B28: $F$3 | C28: <= 公式 | D28: 8 | E28: $F$3>=$H$3 | F28: Binding | G28: 0
B29: $F$4 | C29: <= 公式 | D29: 11 | E29: $F$4>=$H$4 | F29: Binding | G29: 0
B30: $F$5 | C30: <= 公式 | D30: 8 | E30: $F$5>=$H$5 | F30: Binding | G30: 0
B31: $F$6 | C31: <= 公式 | D31: 7 | E31: $F$6>=$H$6 | F31: Binding | G31: 0
B32: $B$2 | C32: YA | D32: 1 | E32: $B$2<=$E$2 | F32: Not Binding | G32: 2
B33: $B$3 | C33: YB | D33: 0 | E33: $B$3<=$E$3 | F33: Not Binding | G33: 1
B34: $B$4 | C34: YC | D34: 0 | E34: $B$4<=$E$4 | F34: Not Binding | G34: 2
B35: $B$5 | C35: YD | D35: 2.240696517e-11 | E35: $B$5<=$E$5 | F35: Not Binding | G35: 2
B36: $B$6 | C36: YE | D36: 1 | E36: $B$6<=$E$6 | F36: Binding | G36: 0
B37: $B$7 | C37: X0 | D37: 0 | E37: $B$7=$D$7 | F37: Not Binding | G37: 0
B38: $B$11 | C38: Xn | D38: 25 | E38: $B$11<=$D$11 | F38: Binding | G38: 0

Sheet GameTheory
A1: OBJ | B1: =B2*C2+B3*C3+B4*C4+B5*C5+B6*C6 -> 350 | F1: 公式
A2: YA | B2: 1 | C2: 100 | D2: <= | E2: 3 | F2: =B8-B7+B2 -> 12 | G2: >= | H2: 12
A3: YB | B3: 0 | C3: 150 | D3: <= | E3: 1 | F3: =B10-B8+B3 -> 8 | G3: >= | H3: 8
A4: YC | B4: 0 | C4: 200 | D4: <= | E4: 2 | F4: =B9-B7+B4 -> 11 | G4: >= | H4: 11
A5: YD | B5: 2.240696517e-11 | C5: 150 | D5: <= | E5: 2 | F5: =B10-B9+B5 -> 8 | G5: >= | H5: 8
A6: YE | B6: 1 | C6: 250 | D6: <= | E6: 1 | F6: =B11-B10+B6 -> 7 | G6: >= | H6: 7
A7: X1 | B7: 0 | D7: 0
A8: X2 | B8: 11
A9: X3 | B9: 11
A10: X4 | B10: 19
A11: X5 | B11: 25 | D11: 25

Sheet Sheet3

Sheet Sheet2

Sheet MenuSheet
A1: c
A41: Level | B41: Caption | C41: Position/Macro | D41: Divider | E41: FaceID
A42: 1 | B42: &FOR | C42: 10 | G42: Click the link below for a method to
A43: 2 | B43: 多準則決策分析
A44: 3 | B44: 加權目標法(Weights Method)
A45: 4 | B45: 建立加權目標法試算表 | C45: OR0901 | E45: 71
A46: 4 | B46: 進行加權目標法分析 | C46: OR0902 | E46: 72
A47: 4 | B47: 列印加權目標法試算表 | C47: OR0903 | E47: 73
A48: 3 | B48: 優先目標法(Preemptive Method)
A49: 4 | B49: 建立優先目標法試算表 | C49: OR0904 | E49: 71
A50: 4 | B50: 進行優先目標法分析 | C50: OR0905 | E50: 72
A51: 4 | B51: 列印優先目標法試算表 | C51: OR0906 | E51: 73
A52: 3 | B52: 層級分析法(AHP)
A53: 4 | B53: 建立決策準則成對比較矩陣 | C53: MF0206 | E53: 71
A54: 4 | B54: 建立決策方案成對比較矩陣 | C54: MF0207 | E54: 72
A55: 4 | B55: 進行層級分析(AHP) | C55: MF0208 | E55: 73
A56: 4 | B56: 列印層級分析(AHP)報表 | C56: MF0209 | E56: 74
A57: 2 | B57: PERT與CPM
A58: 3 | B58: 專案計畫建置 | C58: MF0311 | E58: 71
A59: 3 | B59: 時間排程 | C59: MF0312 | E59: 72
A60: 3 | B60: 推算指定完成時間的機率 | C60: MF0313 | E60: 73
A61: 3 | B61: 最佳趕工方案 | C61: MF0316 | E61: 76
A62: 2 | B62: 軟體使用統計 | C62: MFUsage | D62: TRUE
A63: 2 | B63: 關於作業研究軟體 | C63: MFAbout | D63: TRUE
A64: 2 | B64: 結束作業 | C64: MFEnd | D64: TRUE

Sheet Ex28
A1: Gorman Manufacturing Company
A2: Indicators | B2: Decisions | C2: State of Nature | D2: p(s) | E2: p(I|s) | F2: p(I∩s) | G2: p(s|I) | H2: r | I2: EMV
A3: Favorable(I1) | B3: Manufacture(d1) | C3: Low(s1) | D3: 0.35 | E3: 0.1 | F3: =D3*E3 -> 0.035 | G3: =F3/$F$9 -> 0.0985915493 | H3: -20 | I3: =D3*H3+D4*H4+D5*H5 -> 37 | J3: =MAX(H3,H6) -> 10 | K3: =D3*J3 -> 3.5
A4: =MAX(I4,I7) -> 64.50704225 | B4: =D3*MAX(H3,H6)+D4*MAX(H4,H7)+D5*MAX(H5,H8) -> 49.25 | C4: Medium(s2) | D4: 0.35 | E4: 0.4 | F4: 0.14 | G4: 0.3943661972 | H4: 40 | I4: =G3*H3+G4*H4+G5*H5 -> 64.50704225 | J4: =MAX(H4,H7) -> 45 | K4: =D4*J4 -> 15.75
C5: High(s3) | D5: 0.3 | E5: 0.6 | F5: 0.18 | G5: 0.5070422535 | H5: 100 | J5: =MAX(H5,H8) -> 100 | K5: =D5*J5 -> 30
B6: Purchase(d2) | C6: Low(s1) | D6: 0.35 | E6: 0.1 | F6: 0.035 | G6: 0.0985915493 | H6: 10 | I6: =D6*H6+D7*H7+D8*H8 -> 40.25 | K6: =SUM(K3:K5) -> 49.25
C7: Medium(s2) | D7: 0.35 | E7: 0.4 | F7: 0.14 | G7: 0.3943661972 | H7: 45 | I7: =G6*H6+G7*H7+G8*H8 -> 54.22535211
C8: High(s3) | D8: 0.3 | E8: 0.6 | F8: 0.18 | G8: 0.5070422535 | H8: 70
E9: p(I1)= | F9: =SUM(F6:F8) -> 0.355
A10: Unfavorable(I2) | B10: Manufacture(d1) | C10: Low(s1) | D10: 0.35 | E10: 0.9 | F10: =D10*E10 -> 0.315 | G10: =F10/$F$16 -> 0.488372093 | H10: -20 | I10: =D10*H10+D11*H11+D12*H12 -> 37
A11: =MAX(I11,I14) -> 32.55813953 | C11: Medium(s2) | D11: 0.35 | E11: 0.6 | F11: 0.21 | G11: 0.3255813953 | H11: 40 | I11: =G10*H10+G11*H11+G12*H12 -> 21.86046512
C12: High(s3) | D12: 0.3 | E12: 0.4 | F12: 0.12 | G12: 0.1860465116 | H12: 100
B13: Purchase(d2) | C13: Low(s1) | D13: 0.35 | E13: 0.9 | F13: 0.315 | G13: 0.488372093 | H13: 10 | I13: =D13*H13+D14*H14+D15*H15 -> 40.25
C14: Medium(s2) | D14: 0.35 | E14: 0.6 | F14: 0.21 | G14: 0.3255813953 | H14: 45 | I14: =G13*H13+G14*H14+G15*H15 -> 32.55813953
C15: High(s3) | D15: 0.3 | E15: 0.4 | F15: 0.12 | G15: 0.1860465116 | H15: 70
E16: p(I2)= | F16: =SUM(F13:F15) -> 0.645
A17: EVPI | B17: EMVwoSI | C17: EMVwSI | D17: EMVSI | F17: Rate
A18: =B4-B18 -> 9 | B18: =MAX(I3,I6) -> 40.25 | C18: =A4*F9+A11*F16 -> 43.9 | D18: =C18-B18 -> 3.65 | F18: =D18/A18 -> 0.4055555556

Sheet Pr01
A1: Decision Maker A
A2: Decisions | B2: State of Nature | C2: p(s) | D2: r | E2: p | F2: U | G2: EMV | H2: EUV | I2: UN | J2: pN
A3: Investment1(d1) | B3: Up(s1) | C3: 0.4 | D3: 100 | E3: 1 | F3: =E3*$C$12+(1-E3)*$C$13 -> 10 | G3: =D3*C3 -> 40 | H3: =D3*F3 -> 1000 | I3: =(D3-$D$13)*($C$12-$C$13)/($D$12-$D$13) -> 10 | J3: =(I3-$C$13)/($C$12-$C$13) -> 1 | K3: =IF(F3=I3,"平險",IF(F3>I3,"避險","冒險")) -> 平險
A4: =SUM(G3:G5) -> 47.5 | B4: Stable(s2) | C4: 0.3 | D4: 25 | E4: 0.3 | F4: 3 | G4: =D4*C4 -> 7.5 | H4: =D4*F4 -> 75 | I4: =(D4-$D$13)*($C$12-$C$13)/($D$12-$D$13) -> 2.5 | J4: =(I4-$C$13)/($C$12-$C$13) -> 0.25 | K4: =IF(F4=I4,"平險",IF(F4>I4,"避險","冒險")) -> 避險
A5: =SUM(H3:H5) -> 1075 | B5: Down(s3) | C5: 0.3 | D5: 0 | E5: 0 | F5: 0 | G5: 0 | H5: 0 | I5: 0 | J5: 0 | K5: 平險
A6: Investment2(d2) | B6: Up(s1) | C6: 0.4 | D6: 75 | E6: 0.8 | F6: 8 | G6: 30 | H6: 600 | I6: 7.5 | J6: 0.75 | K6: 避險
A7: =SUM(G6:G8) -> 52.5 | B7: Stable(s2) | C7: 0.3 | D7: 50 | E7: 0.6 | F7: 6 | G7: 15 | H7: 300 | I7: 5 | J7: 0.5 | K7: 避險
A8: =SUM(H6:H8) -> 975 | B8: Down(s3) | C8: 0.3 | D8: 25 | E8: 0.3 | F8: 3 | G8: 7.5 | H8: 75 | I8: 2.5 | J8: 0.25 | K8: 避險
A9: Investment3(d3) | B9: Up(s1) | C9: 0.4 | D9: 50 | E9: 0.6 | F9: 6 | G9: 20 | H9: 300 | I9: 5 | J9: 0.5 | K9: 避險
A10: =SUM(G9:G11) -> 50 | B10: Stable(s2) | C10: 0.3 | D10: 50 | E10: 0.6 | F10: 6 | G10: 15 | H10: 300 | I10: 5 | J10: 0.5 | K10: 避險
A11: =SUM(H9:H11) -> 900 | B11: Down(s3) | C11: 0.3 | D11: 50 | E11: 0.6 | F11: 6 | G11: 15 | H11: 300 | I11: 5 | J11: 0.5 | K11: 避險
A12: =MAX(A4,A7,A10) -> 52.5 | B12: Max | C12: 10 | D12: =MAX(D3:D11) -> 100 | G12: =MAX(G3:G11) -> 40 | H12: =MAX(H3:H11) -> 1000
A13: =MAX(A5,A8,A12) -> 1075 | B13: Min | C13: 0 | D13: =MIN(D3:D11) -> 0 | G13: =MIN(G3:G11) -> 0 | H13: =MIN(H3:H11) -> 0
A15: Decision Maker B
A16: Decisions | B16: State of Nature | C16: p(s) | D16: r | E16: p | F16: U | G16: EMV | H16: EUV | I16: UN | J16: pN
A17: Investment1(d1) | B17: Up(s1) | C17: 0.4 | D17: 100 | E17: 1 | F17: =E17*$C$12+(1-E17)*$C$13 -> 10 | G17: =D17*C17 -> 40 | H17: =D17*F17 -> 1000 | I17: =(D17-$D$13)*($C$12-$C$13)/($D$12-$D$13) -> 10 | J17: =(I17-$C$13)/($C$12-$C$13) -> 1 | K17: =IF(F17=I17,"平險",IF(F17>I17,"避險","冒險")) -> 平險
A18: =SUM(G17:G19) -> 47.5 | B18: Stable(s2) | C18: 0.3 | D18: 25 | E18: 0.15 | F18: 1.5 | G18: =D18*C18 -> 7.5 | H18: =D18*F18 -> 37.5 | I18: =(D18-$D$13)*($C$12-$C$13)/($D$12-$D$13) -> 2.5 | J18: =(I18-$C$13)/($C$12-$C$13) -> 0.25 | K18: =IF(F18=I18,"平險",IF(F18>I18,"避險","冒險")) -> 冒險
A19: =SUM(H17:H19) -> 1037.5 | B19: Down(s3) | C19: 0.3 | D19: 0 | E19: 0 | F19: 0 | G19: 0 | H19: 0 | I19: 0 | J19: 0 | K19: 平險
A20: Investment2(d2) | B20: Up(s1) | C20: 0.4 | D20: 75 | E20: 0.6 | F20: 6 | G20: 30 | H20: 450 | I20: 7.5 | J20: 0.75 | K20: 冒險
A21: =SUM(G20:G22) -> 52.5 | B21: Stable(s2) | C21: 0.3 | D21: 50 | E21: 0.3 | F21: 3 | G21: 15 | H21: 150 | I21: 5 | J21: 0.5 | K21: 冒險
A22: =SUM(H20:H22) -> 637.5 | B22: Down(s3) | C22: 0.3 | D22: 25 | E22: 0.15 | F22: 1.5 | G22: 7.5 | H22: 37.5 | I22: 2.5 | J22: 0.25 | K22: 冒險
A23: Investment3(d3) | B23: Up(s1) | C23: 0.4 | D23: 50 | E23: 0.3 | F23: 3 | G23: 20 | H23: 150 | I23: 5 | J23: 0.5 | K23: 冒險
A24: =SUM(G23:G25) -> 50 | B24: Stable(s2) | C24: 0.3 | D24: 50 | E24: 0.3 | F24: 3 | G24: 15 | H24: 150 | I24: 5 | J24: 0.5 | K24: 冒險
A25: =SUM(H23:H25) -> 450 | B25: Down(s3) | C25: 0.3 | D25: 50 | E25: 0.3 | F25: 3 | G25: 15 | H25: 150 | I25: 5 | J25: 0.5 | K25: 冒險
A26: =MAX(A18,A21,A24) -> 52.5 | B26: Max | C26: 10 | D26: =MAX(D17:D25) -> 100 | G26: =MAX(G17:G25) -> 40 | H26: =MAX(H17:H25) -> 1000
A27: =MAX(A19,A22,A25) -> 1037.5 | B27: Min | C27: 0 | D27: =MIN(D17:D25) -> 0 | G27: =MIN(G17:G25) -> 0 | H27: =MIN(H17:H25) -> 0

Sheet Pr02
A1: Alexander Industries (Minimization)
A2: Decision | B2: State of Nature | C2: p(s) | D2: r | E2: p | F2: U | G2: EMV | H2: EUV
A3: Purchase Insurance(d1) | B3: None | C3: 0.96 | D3: 10000 | E3: 0.99 | F3: 0.99 | G3: =D3*C3 -> 9600 | H3: =C3*F3 -> 0.9504
A4: =SUM(G3:G5) -> 10000 | B4: Minor | C4: 0.03 | D4: 10000 | E4: 0.99 | F4: 0.99 | G4: 300 | H4: 0.0297 | I4: =SUM(H3:H5) -> 0.99
B5: Major | C5: 0.01 | D5: 10000 | E5: 0.99 | F5: 0.99 | G5: 100 | H5: 0.0099
A6: No Insurance(d2) | B6: None | C6: 0.96 | D6: 0 | E6: 1 | F6: 1 | G6: 0 | H6: 0.96
A7: =SUM(G6:G8) -> 5000 | B7: Minor | C7: 0.03 | D7: 100000 | E7: 0.99 | F7: 0.99 | G7: 3000 | H7: 0.0297 | I7: =SUM(H6:H8) -> 0.9897
B8: Major | C8: 0.01 | D8: 200000 | E8: 0 | F8: 0 | G8: 2000 | H8: 0
A11: Decision | B11: State of Nature | C11: p(s) | D11: r | E11: p | F11: U | G11: Un | H11: pN | I11: Risk
A12: Purchase Insurance(d1) | B12: None | C12: 0.96 | D12: 10000 | E12: 0.99 | F12: =E12*$C$19+(1-E12)*$C$20 -> 0.99 | G12: =(D12-$D$20)*($C$19-$C$20)/($D$19-$D$20) -> 0.95 | H12: =(G12-$C$20)/($C$19-$C$20) -> 0.95 | I12: =IF(F12=G12,"平險",IF(F12>G12,"避險","冒險")) -> 避險
B13: Minor | C13: 0.03 | D13: 10000 | E13: 0.99 | F13: 0.99 | G13: 0.95 | H13: 0.95 | I13: 避險
B14: Major | C14: 0.01 | D14: 10000 | E14: 0.99 | F14: 0.99 | G14: 0.95 | H14: 0.95 | I14: 避險
A15: No Insurance(d2) | B15: None | C15: 0.96 | D15: 0 | E15: 1 | F15: 1 | G15: 1 | H15: 1 | I15: 平險
B16: Minor | C16: 0.03 | D16: 100000 | E16: 0.99 | F16: 0.99 | G16: 0.5 | H16: 0.5 | I16: 避險
B17: Major | C17: 0.01 | D17: 200000 | E17: 0 | F17: 0 | G17: 0 | H17: 0 | I17: 平險
B19: Best | C19: 1 | D19: =MIN(D12:D17) -> 0
B20: Worst | C20: 0 | D20: =MAX(D12:D17) -> 200000

Sheet GTA1
A1: 4 | B1: 4 | C1: 2 | D1: GTA1
A2: 1 | B2: 5 | C2: 0
A3: 雙方零和競賽決策(賽局值與雙方最佳策略)
B4: C1 | C4: C2 | D4: C3 | E4: C4 | F4: C5 | G4: R方策略 | H4: C方賽局值
A5: R1 | B5: 21 | C5: 13 | D5: 11 | E5: 20 | F5: 6 | G5: 1
A6: R2 | B6: 17 | C6: 15 | D6: 14 | E6: 16 | F6: 17 | G6: 1
A7: R3 | B7: 10 | C7: 14 | D7: 13 | E7: 13 | F7: 18 | G7: 1
A8: R4 | B8: 15 | C8: 16 | D8: 12 | E8: 12 | F8: 11 | G8: 1
A9: C方策略 | B9: 1 | C9: 1 | D9: 1 | E9: 1 | F9: 1
A10: R方賽局值
B11: 0 | C11: 0 | D11: 0.07142471408 | E11: 0 | F11: 0
B12: 1 | C12: 1 | D12: 1 | E12: 1 | F12: 1 | G12: =SUM(B12:F12) -> 5

Sheet GT01
A1: StartRow | B1: RowNum | C1: Status | D1: SheetName
A2: StartCol | B2: ColNum | C2: Comments
A3: 雙方零和競賽決策(賽局值與雙方最佳策略)
B4: C1 | C4: C2 | D4: C3 | E4: R方策略 | F4: R期望值
A5: R1 | B5: 3 | C5: 2 | D5: 3
A6: R2 | B6: 1 | C6: 0 | D6: -1
A7: R3 | B7: -1 | C7: 1 | D7: 0
A8: C方策略
A9: C期望值 | F9: 2541

Sheet Decision Analysis Menu
A1: 決策分析
A2: 非機率性決策分析 | B2: frm非機率性
A3: 機率性(無樣本資訊)分析 | B3: frm機率性無樣本
A4: 機率性(有樣本資訊)分析 | B4: frm機率性有樣本
A5: 效率率定 | B5: frm效率率定
B15: 54
F17: 241
B21: =A19*A20 -> 0
B22: =A20*A21 -> 0
B23: 0
B24: 0
B25: 0
B26: 0
B27: 0

Sheet Decision Analysis Menu (2)

Sheet Sheet1
B5: 2254
B6: 144

Sheet DA1
A1: 10
A2: 8 | B2: 率定各利潤(成本)值的等效用機率 | C2: 率定各利潤(成本)值的等效用機率
B4: 推算各利潤(成本)值的效用 | C4: 推算各利潤(成本)值的效用
A10: 利潤值 | B10: P | C10: U | D10: Un | E10: Pn | F10: 冒險度
A11: 150
A12: 247
A13: 514
A14: 715
A15: 0
A16: 800
A17: 541
A18: 254
A19: 800 | B19: 最大值 | C19: 7
A20: 0 | B20: 最小值 | C20: 0

Sheet 顏色
A1: 1 | B1: 53 | C1: 52 | D1: 51 | E1: 49 | F1: 11 | G1: 55 | H1: 56
A2: 9 | B2: 46 | C2: 12 | D2: 10 | E2: 14 | F2: 5 | G2: 47 | H2: 16
A3: 3 | B3: 45 | C3: 43 | D3: 50 | E3: 42 | F3: 41 | G3: 13 | H3: 48
A4: 7 | B4: 44 | C4: 6 | D4: 4 | E4: 8 | F4: 33 | G4: 54 | H4: 15
A5: 38 | B5: 40 | C5: 36 | D5: 35 | E5: 34 | F5: 37 | G5: 39 | H5: 2
A6: 黑 | B6: 褐色 | C6: 橄欖綠 | D6: 深綠 | E6: 深藍綠 | F6: 深藍 | G6: 靛藍|(店) | H6: 灰80%
A7: 深紅 | B7: 橙 | C7: 深黃 | D7: 綠 | E7: 藍綠 | F7: 藍 | G7: 藍灰 | H7: 灰50%
A8: 紅 | B8: 淺橙 | C8: 深亮綠 | D8: 海藻綠 | E8: 青 | F8: 淺藍 | G8: 紫 | H8: 灰40%
A9: 粉紅 | B9: 金 | C9: 黃 | D9: 淺亮綠 | E9: 淺粉藍 | F9: 天藍 | G9: 梅紅 | H9: 灰25%
A10: 玫瑰紅 | B10: 深黃褐 | C10: 淺黃 | D10: 淺綠 | E10: 淺藍綠 | F10: 淡藍 | G10: 淡紫 | H10: 白
A12: 1 | B12: 黑
A13: 2 | B13: 白
A14: 3 | B14: 紅
A15: 4 | B15: 淺亮綠
A16: 5 | B16: 藍
A17: 6 | B17: 黃
A18: 7 | B18: 粉紅
A19: 8 | B19: 淺粉藍
A20: 9 | B20: 深紅
A21: 10 | B21: 綠
A22: 11 | B22: 深藍
A23: 12 | B23: 深黃
A24: 13 | B24: 紫
A25: 14 | B25: 藍綠
A26: 15 | B26: 灰25%
A27: 16 | B27: 灰50%
A28: 33 | B28: 天藍
A29: 34 | B29: 淺藍綠
A30: 35 | B30: 淺綠
A31: 36 | B31: 淺黃
A32: 37 | B32: 淡藍
A33: 38 | B33: 玫瑰紅
A34: 39 | B34: 淡紫
A35: 40 | B35: 深黃褐
A36: 41 | B36: 淺藍
A37: 42 | B37: 青
A38: 43 | B38: 深亮綠
A39: 44 | B39: 金
A40: 45 | B40: 淺橙
A41: 46 | B41: 橙
A42: 47 | B42: 藍灰
A43: 48 | B43: 灰40%
A44: 49 | B44: 深藍綠
A45: 50 | B45: 海藻綠
A46: 51 | B46: 深綠
A47: 52 | B47: 橄欖綠
A48: 53 | B48: 褐色
A49: 54 | B49: 梅紅
A50: 55 | B50: 靛藍|(店)
A51: 56 | B51: 灰80%

Sheet Pr03
A1: Lottery (Maximization)
A2: Decision | B2: State of Nature | C2: p(s) | D2: r | E2: p | F2: U | G2: EMV | H2: EUV
A3: Purchase Lottery(d1) | B3: Win(s1) | C3: =1/250000 -> 4e-06 | D3: 300000 | E3: 1 | F3: 10 | G3: =C3*D3 -> 1.2 | H3: =F3*C3 -> 4e-05
B4: Lose(s2) | C4: =1-C3 -> 0.999996 | D4: -2 | E4: 0 | F4: 0 | G4: =C4*D4 -> -1.999992 | H4: =F4*C4 -> 0
A5: Not Purchase Lottery(d2) | B5: Win(s1) | C5: =1/250000 -> 4e-06 | D5: 0 | E5: 1e-06 | F5: 1e-05 | G5: =C5*D5 -> 0 | H5: =F5*C5 -> 4e-11
B6: Lose(s2) | C6: =1-C5 -> 0.999996 | D6: 0 | E6: 1e-06 | F6: 1e-05 | G6: =C6*D6 -> 0 | H6: =F6*C6 -> 9.99996e-06
A15: Decision | B15: State of Nature | C15: p(s) | D15: r | E15: p | F15: U | G15: Un | H15: pN | I15: Risk
A16: Purchase Lottery(d1) | B16: Win(s1) | C16: =1/250000 -> 4e-06 | D16: 300000 | E16: 1 | F16: =E16*$C$20+(1-E16)*$C$21 -> 10 | G16: =(D16-$D$20)*($C$19-$C$20)/($D$19-$D$20) -> 0 | H16: =(G16-$C$20)/($C$19-$C$20) -> 1.111110617 | I16: =IF(F16=G16,"平險",IF(F16>G16,"避險","冒險")) -> 避險
B17: Lose(s2) | C17: =1-C16 -> 0.999996 | D17: -2 | E17: 0 | F17: =E17*$C$20+(1-E17)*$C$21 -> 0
A18: Not Purchase Lottery(d2) | B18: Win(s1) | C18: =1/250000 -> 4e-06 | D18: 0 | E18: 1e-06 | F18: =E18*$C$20+(1-E18)*$C$21 -> 1e-05
B19: Lose(s2) | C19: =1-C18 -> 0.999996 | D19: 0 | E19: 1e-06 | F19: =E19*$C$20+(1-E19)*$C$21 -> 1e-05
B20: best | C20: 10 | D20: =MAX(D16:D19) -> 300000
B21: worst | C21: 0 | D21: =MIN(D16:D19) -> -2

Sheet Ex1
A1: Some Title
A2: Profit | B2: s1 | C2: s2 | D2: s3 | E2: s4 | F2: Optimistic | G2: Conservative | H2: Pessimistic | I2: miniMax Regret
A3: d1 | B3: 14 | C3: 9 | D3: 10 | E3: 5 | F3: =MAX(B3:E3) -> 14 | G3: =MIN(B3:E3) -> 5 | H3: =MIN(B3:E3) -> 5 | I3: =MAX(B11:E11) -> 8
A4: d2 | B4: 11 | C4: 10 | D4: 8 | E4: 7 | F4: =MAX(B4:E4) -> 11 | G4: =MIN(B4:E4) -> 7 | H4: =MIN(B4:E4) -> 7 | I4: =MAX(B12:E12) -> 6
A5: d3 | B5: 9 | C5: 10 | D5: 10 | E5: 11 | F5: =MAX(B5:E5) -> 11 | G5: =MIN(B5:E5) -> 9 | H5: =MIN(B5:E5) -> 9 | I5: =MAX(B13:E13) -> 5
A6: d4 | B6: 8 | C6: 10 | D6: 11 | E6: 13 | F6: =MAX(B6:E6) -> 13 | G6: =MIN(B6:E6) -> 8 | H6: =MIN(B6:E6) -> 8 | I6: =MAX(B14:E14) -> 6
A7: 最大值 | B7: =MAX(B3:B6) -> 14 | C7: 10 | D7: 11 | E7: 13 | F7: 14 | G7: 9 | H7: =MIN(H3:H6) -> 5 | I7: =MIN(I3:I6) -> 5
A8: 最小值 | B8: =MIN(B3:B6) -> 8 | C8: =MIN(C3:C6) -> 9 | D8: 8 | E8: 5 | F8: 11 | G8: 5 | H8: 5 | I8: 5
A9: 最佳案 | F9: d1 | G9: d3 | H9: d1 | I9: d3
A10: Regret | B10: s1 | C10: s2 | D10: s3 | E10: s4 | F10: 遺憾值
A11: d1 | B11: =$B$7-B3 -> 0 | C11: =$C$7-C3 -> 1 | D11: =$D$7-D3 -> 1 | E11: =$E$7-E3 -> 8
A12: d2 | B12: =$B$7-B4 -> 3 | C12: =$C$7-C4 -> 0 | D12: =$D$7-D4 -> 3 | E12: =$E$7-E4 -> 6
A13: d3 | B13: =$B$7-B5 -> 5 | C13: =$C$7-C5 -> 0 | D13: =$D$7-D5 -> 1 | E13: =$E$7-E5 -> 2
A14: d4 | B14: =$B$7-B6 -> 6 | C14: =$C$7-C6 -> 0 | D14: =$D$7-D6 -> 0 | E14: =$E$7-E6 -> 0
A17: Cost | B17: s1 | C17: s2 | D17: s3 | E17: s4 | F17: Optimistic | G17: Conservative | H17: Pessimistic | I17: miniMax Regret
A18: d1 | B18: 14 | C18: 9 | D18: 10 | E18: 5 | F18: =MIN(B18:E18) -> 5 | G18: =MAX(B18:E18) -> 14 | H18: =MAX(B18:E18) -> 14 | I18: =MAX(B25:E25) -> 6
A19: d2 | B19: 11 | C19: 10 | D19: 8 | E19: 7 | F19: =MIN(B19:E19) -> 7 | G19: =MAX(B19:E19) -> 11 | H19: =MAX(B19:E19) -> 11 | I19: =MAX(B26:E26) -> 3
A20: d3 | B20: 9 | C20: 10 | D20: 10 | E20: 11 | F20: =MIN(B20:E20) -> 9 | G20: =MAX(B20:E20) -> 11 | H20: =MAX(B20:E20) -> 11 | I20: =MAX(B27:E27) -> 6
A21: d4 | B21: 8 | C21: 10 | D21: 11 | E21: 13 | F21: =MIN(B21:E21) -> 8 | G21: =MAX(B21:E21) -> 13 | H21: =MAX(B21:E21) -> 13 | I21: =MAX(B28:E28) -> 8
B22: =MIN(B18:B21) -> 8 | C22: 9 | D22: 8 | E22: 5 | F22: 5 | G22: 11 | H22: =MAX(H18:H21) -> 14 | I22: =MIN(I18:I21) -> 3
F23: d1 | G23: d2 or d3 | H23: d1 | I23: d2
A24: Regret | B24: s1 | C24: s2 | D24: s3 | E24: s4
A25: d1 | B25: =B18-$B$22 -> 6 | C25: =C18-$C$22 -> 0 | D25: =D18-$D$22 -> 2 | E25: =E18-$E$22 -> 0
A26: d2 | B26: =B19-$B$22 -> 3 | C26: =C19-$C$22 -> 1 | D26: =D19-$D$22 -> 0 | E26: =E19-$E$22 -> 2
A27: d3 | B27: =B20-$B$22 -> 1 | C27: =C20-$C$22 -> 1 | D27: =D20-$D$22 -> 2 | E27: =E20-$E$22 -> 6
A28: d4 | B28: =B21-$B$22 -> 0 | C28: =C21-$C$22 -> 1 | D28: =D21-$D$22 -> 3 | E28: =E21-$E$22 -> 8
